{"text_format":"1","workbook":"xlsx","n_sheets":4,"sheets":["COMOS TOOL","Rename ISO A1 FOLDER","PROJECTWICE (PASTE DATA)","Projectwize (Do not edit)"],"not_rendered":{"charts":0,"images":2,"macros":1,"external_links":0,"defined_names":2,"comments":0,"pivot_tables":0},"unopened":[],"bounds":{"document_bytes":16777216,"sheet_cells":100000,"rows_first":2000,"rows_last":500,"rows_between":2000,"halvings":0,"cell_chars":16384,"cell_head_chars":4096},"cells_cut":0,"cells_raw":0,"read":"whole","date_system":"1900"}

{"sheet":"COMOS TOOL","index":0,"n_rows":301,"n_cols":5,"rows_kept":301,"cut":false,"hidden":false,"merged":[[1,3,1,4],[8,3,10,4]]}
["COMOS Linenumbers","Drawing numbers"]
["RG-B25-P45107",{"$f":"_xlfn.TEXTJOIN(\", \",TRUE,IF(A2='Projectwize (Do not edit)'!$B$2:$B$7,'Projectwize (Do not edit)'!$C$2:$C$7,\"\"))","v":"1019879"},null,"To the folks who want it easyer."]
["RL-A30-P45114",{"$f":"_xlfn.TEXTJOIN(\", \",TRUE,IF(A3='Projectwize (Do not edit)'!$B$2:$B$7,'Projectwize (Do not edit)'!$C$2:$C$7,\"\"))","v":"1019880"},null,"1.","Copy list from Projectwize iso folder. "]
["RL-B25-P45101",{"$f":"_xlfn.TEXTJOIN(\", \",TRUE,IF(A4='Projectwize (Do not edit)'!$B$2:$B$7,'Projectwize (Do not edit)'!$C$2:$C$7,\"\"))","v":""},null,"2.","Click on the Button \"Paste\"  in the \"Projectwize (Paste Data)\" tab."]
["RL-B25-P45105",{"$f":"_xlfn.TEXTJOIN(\", \",TRUE,IF(A5='Projectwize (Do not edit)'!$B$2:$B$7,'Projectwize (Do not edit)'!$C$2:$C$7,\"\"))","v":""},null,"3.","Copy paste the list from Comos to \"comos Linenumbers\""]
["RL-B25-P45109",{"$f":"_xlfn.TEXTJOIN(\", \",TRUE,IF(A6='Projectwize (Do not edit)'!$B$2:$B$7,'Projectwize (Do not edit)'!$C$2:$C$7,\"\"))","v":"1580715, 1580717, 1580718, 1580719"},null,"4.","Copy the list from Drawing numbers projectwice"]
[null,{"$f":"_xlfn.TEXTJOIN(\", \",TRUE,IF(A7='Projectwize (Do not edit)'!$B$2:$B$7,'Projectwize (Do not edit)'!$C$2:$C$7,\"\"))","v":""},null,"5.","Enjoy."]
[null,{"$f":"_xlfn.TEXTJOIN(\", \",TRUE,IF(A8='Projectwize (Do not edit)'!$B$2:$B$7,'Projectwize (Do not edit)'!$C$2:$C$7,\"\"))","v":""}]
[null,{"$f":"_xlfn.TEXTJOIN(\", \",TRUE,IF(A9='Projectwize (Do not edit)'!$B$2:$B$7,'Projectwize (Do not edit)'!$C$2:$C$7,\"\"))","v":""},null,{"$f":"_xlfn.TEXTJOIN(\"\",FALSE, \"Do you work in project \",'PROJECTWICE (PASTE DATA)'!F2,\" ?\",\" If not, paste the correct dato to Projectwice (Paste data) Tab\")","v":"Do you work in project 230087 ? If not, paste the correct dato to Projectwice (Paste data) Tab"}]
[null,{"$f":"_xlfn.TEXTJOIN(\", \",TRUE,IF(A10='Projectwize (Do not edit)'!$B$2:$B$7,'Projectwize (Do not edit)'!$C$2:$C$7,\"\"))","v":""}]
[null,{"$f":"_xlfn.TEXTJOIN(\", \",TRUE,IF(A11='Projectwize (Do not edit)'!$B$2:$B$7,'Projectwize (Do not edit)'!$C$2:$C$7,\"\"))","v":""}]
[null,{"$f":"_xlfn.TEXTJOIN(\", \",TRUE,IF(A12='Projectwize (Do not edit)'!$B$2:$B$7,'Projectwize (Do not edit)'!$C$2:$C$7,\"\"))","v":""}]
[null,{"$f":"_xlfn.TEXTJOIN(\", \",TRUE,IF(A13='Projectwize (Do not edit)'!$B$2:$B$7,'Projectwize (Do not edit)'!$C$2:$C$7,\"\"))","v":""}]
[null,{"$f":"_xlfn.TEXTJOIN(\", \",TRUE,IF(A14='Projectwize (Do not edit)'!$B$2:$B$7,'Projectwize (Do not edit)'!$C$2:$C$7,\"\"))","v":""}]
[null,{"$f":"_xlfn.TEXTJOIN(\", \",TRUE,IF(A15='Projectwize (Do not edit)'!$B$2:$B$7,'Projectwize (Do not edit)'!$C$2:$C$7,\"\"))","v":""}]
[null,{"$f":"_xlfn.TEXTJOIN(\", \",TRUE,IF(A16='Projectwize (Do not edit)'!$B$2:$B$7,'Projectwize (Do not edit)'!$C$2:$C$7,\"\"))","v":""}]
[null,{"$f":"_xlfn.TEXTJOIN(\", \",TRUE,IF(A17='Projectwize (Do not edit)'!$B$2:$B$7,'Projectwize (Do not edit)'!$C$2:$C$7,\"\"))","v":""}]
[null,{"$f":"_xlfn.TEXTJOIN(\", \",TRUE,IF(A18='Projectwize (Do not edit)'!$B$2:$B$7,'Projectwize (Do not edit)'!$C$2:$C$7,\"\"))","v":""}]
[null,{"$f":"_xlfn.TEXTJOIN(\", \",TRUE,IF(A19='Projectwize (Do not edit)'!$B$2:$B$7,'Projectwize (Do not edit)'!$C$2:$C$7,\"\"))","v":""}]
[null,{"$f":"_xlfn.TEXTJOIN(\", \",TRUE,IF(A20='Projectwize (Do not edit)'!$B$2:$B$7,'Projectwize (Do not edit)'!$C$2:$C$7,\"\"))","v":""}]
[null,{"$f":"_xlfn.TEXTJOIN(\", \",TRUE,IF(A21='Projectwize (Do not edit)'!$B$2:$B$7,'Projectwize (Do not edit)'!$C$2:$C$7,\"\"))","v":""}]
[null,{"$f":"_xlfn.TEXTJOIN(\", \",TRUE,IF(A22='Projectwize (Do not edit)'!$B$2:$B$7,'Projectwize (Do not edit)'!$C$2:$C$7,\"\"))","v":""}]
[null,{"$f":"_xlfn.TEXTJOIN(\", \",TRUE,IF(A23='Projectwize (Do not edit)'!$B$2:$B$7,'Projectwize (Do not edit)'!$C$2:$C$7,\"\"))","v":""}]
[null,{"$f":"_xlfn.TEXTJOIN(\", \",TRUE,IF(A24='Projectwize (Do not edit)'!$B$2:$B$7,'Projectwize (Do not edit)'!$C$2:$C$7,\"\"))","v":""}]
[null,{"$f":"_xlfn.TEXTJOIN(\", \",TRUE,IF(A25='Projectwize (Do not edit)'!$B$2:$B$7,'Projectwize (Do not edit)'!$C$2:$C$7,\"\"))","v":""}]
[null,{"$f":"_xlfn.TEXTJOIN(\", \",TRUE,IF(A26='Projectwize (Do not edit)'!$B$2:$B$7,'Projectwize (Do not edit)'!$C$2:$C$7,\"\"))","v":""}]
[null,{"$f":"_xlfn.TEXTJOIN(\", \",TRUE,IF(A27='Projectwize (Do not edit)'!$B$2:$B$7,'Projectwize (Do not edit)'!$C$2:$C$7,\"\"))","v":""}]
[null,{"$f":"_xlfn.TEXTJOIN(\", \",TRUE,IF(A28='Projectwize (Do not edit)'!$B$2:$B$7,'Projectwize (Do not edit)'!$C$2:$C$7,\"\"))","v":""}]
[null,{"$f":"_xlfn.TEXTJOIN(\", \",TRUE,IF(A29='Projectwize (Do not edit)'!$B$2:$B$7,'Projectwize (Do not edit)'!$C$2:$C$7,\"\"))","v":""}]
[null,{"$f":"_xlfn.TEXTJOIN(\", \",TRUE,IF(A30='Projectwize (Do not edit)'!$B$2:$B$7,'Projectwize (Do not edit)'!$C$2:$C$7,\"\"))","v":""}]
[null,{"$f":"_xlfn.TEXTJOIN(\", \",TRUE,IF(A31='Projectwize (Do not edit)'!$B$2:$B$7,'Projectwize (Do not edit)'!$C$2:$C$7,\"\"))","v":""}]
[null,{"$f":"_xlfn.TEXTJOIN(\", \",TRUE,IF(A32='Projectwize (Do not edit)'!$B$2:$B$7,'Projectwize (Do not edit)'!$C$2:$C$7,\"\"))","v":""}]
[null,{"$f":"_xlfn.TEXTJOIN(\", \",TRUE,IF(A33='Projectwize (Do not edit)'!$B$2:$B$7,'Projectwize (Do not edit)'!$C$2:$C$7,\"\"))","v":""}]
[null,{"$f":"_xlfn.TEXTJOIN(\", \",TRUE,IF(A34='Projectwize (Do not edit)'!$B$2:$B$7,'Projectwize (Do not edit)'!$C$2:$C$7,\"\"))","v":""}]
[null,{"$f":"_xlfn.TEXTJOIN(\", \",TRUE,IF(A35='Projectwize (Do not edit)'!$B$2:$B$7,'Projectwize (Do not edit)'!$C$2:$C$7,\"\"))","v":""}]
[null,{"$f":"_xlfn.TEXTJOIN(\", \",TRUE,IF(A36='Projectwize (Do not edit)'!$B$2:$B$7,'Projectwize (Do not edit)'!$C$2:$C$7,\"\"))","v":""}]
[null,{"$f":"_xlfn.TEXTJOIN(\", \",TRUE,IF(A37='Projectwize (Do not edit)'!$B$2:$B$7,'Projectwize (Do not edit)'!$C$2:$C$7,\"\"))","v":""}]
[null,{"$f":"_xlfn.TEXTJOIN(\", \",TRUE,IF(A38='Projectwize (Do not edit)'!$B$2:$B$7,'Projectwize (Do not edit)'!$C$2:$C$7,\"\"))","v":""}]
[null,{"$f":"_xlfn.TEXTJOIN(\", \",TRUE,IF(A39='Projectwize (Do not edit)'!$B$2:$B$7,'Projectwize (Do not edit)'!$C$2:$C$7,\"\"))","v":""}]
[null,{"$f":"_xlfn.TEXTJOIN(\", \",TRUE,IF(A40='Projectwize (Do not edit)'!$B$2:$B$7,'Projectwize (Do not edit)'!$C$2:$C$7,\"\"))","v":""}]
[null,{"$f":"_xlfn.TEXTJOIN(\", \",TRUE,IF(A41='Projectwize (Do not edit)'!$B$2:$B$7,'Projectwize (Do not edit)'!$C$2:$C$7,\"\"))","v":""}]
[null,{"$f":"_xlfn.TEXTJOIN(\", \",TRUE,IF(A42='Projectwize (Do not edit)'!$B$2:$B$7,'Projectwize (Do not edit)'!$C$2:$C$7,\"\"))","v":""}]
[null,{"$f":"_xlfn.TEXTJOIN(\", \",TRUE,IF(A43='Projectwize (Do not edit)'!$B$2:$B$7,'Projectwize (Do not edit)'!$C$2:$C$7,\"\"))","v":""}]
[null,{"$f":"_xlfn.TEXTJOIN(\", \",TRUE,IF(A44='Projectwize (Do not edit)'!$B$2:$B$7,'Projectwize (Do not edit)'!$C$2:$C$7,\"\"))","v":""}]
[null,{"$f":"_xlfn.TEXTJOIN(\", \",TRUE,IF(A45='Projectwize (Do not edit)'!$B$2:$B$7,'Projectwize (Do not edit)'!$C$2:$C$7,\"\"))","v":""}]
[null,{"$f":"_xlfn.TEXTJOIN(\", \",TRUE,IF(A46='Projectwize (Do not edit)'!$B$2:$B$7,'Projectwize (Do not edit)'!$C$2:$C$7,\"\"))","v":""}]
[null,{"$f":"_xlfn.TEXTJOIN(\", \",TRUE,IF(A47='Projectwize (Do not edit)'!$B$2:$B$7,'Projectwize (Do not edit)'!$C$2:$C$7,\"\"))","v":""}]
[null,{"$f":"_xlfn.TEXTJOIN(\", \",TRUE,IF(A48='Projectwize (Do not edit)'!$B$2:$B$7,'Projectwize (Do not edit)'!$C$2:$C$7,\"\"))","v":""}]
[null,{"$f":"_xlfn.TEXTJOIN(\", \",TRUE,IF(A49='Projectwize (Do not edit)'!$B$2:$B$7,'Projectwize (Do not edit)'!$C$2:$C$7,\"\"))","v":""}]
[null,{"$f":"_xlfn.TEXTJOIN(\", \",TRUE,IF(A50='Projectwize (Do not edit)'!$B$2:$B$7,'Projectwize (Do not edit)'!$C$2:$C$7,\"\"))","v":""}]
[null,{"$f":"_xlfn.TEXTJOIN(\", \",TRUE,IF(A51='Projectwize (Do not edit)'!$B$2:$B$7,'Projectwize (Do not edit)'!$C$2:$C$7,\"\"))","v":""}]
[null,{"$f":"_xlfn.TEXTJOIN(\", \",TRUE,IF(A52='Projectwize (Do not edit)'!$B$2:$B$7,'Projectwize (Do not edit)'!$C$2:$C$7,\"\"))","v":""}]
[null,{"$f":"_xlfn.TEXTJOIN(\", \",TRUE,IF(A53='Projectwize (Do not edit)'!$B$2:$B$7,'Projectwize (Do not edit)'!$C$2:$C$7,\"\"))","v":""}]
[null,{"$f":"_xlfn.TEXTJOIN(\", \",TRUE,IF(A54='Projectwize (Do not edit)'!$B$2:$B$7,'Projectwize (Do not edit)'!$C$2:$C$7,\"\"))","v":""}]
[null,{"$f":"_xlfn.TEXTJOIN(\", \",TRUE,IF(A55='Projectwize (Do not edit)'!$B$2:$B$7,'Projectwize (Do not edit)'!$C$2:$C$7,\"\"))","v":""}]
[null,{"$f":"_xlfn.TEXTJOIN(\", \",TRUE,IF(A56='Projectwize (Do not edit)'!$B$2:$B$7,'Projectwize (Do not edit)'!$C$2:$C$7,\"\"))","v":""}]
[null,{"$f":"_xlfn.TEXTJOIN(\", \",TRUE,IF(A57='Projectwize (Do not edit)'!$B$2:$B$7,'Projectwize (Do not edit)'!$C$2:$C$7,\"\"))","v":""}]
[null,{"$f":"_xlfn.TEXTJOIN(\", \",TRUE,IF(A58='Projectwize (Do not edit)'!$B$2:$B$7,'Projectwize (Do not edit)'!$C$2:$C$7,\"\"))","v":""}]
[null,{"$f":"_xlfn.TEXTJOIN(\", \",TRUE,IF(A59='Projectwize (Do not edit)'!$B$2:$B$7,'Projectwize (Do not edit)'!$C$2:$C$7,\"\"))","v":""}]
[null,{"$f":"_xlfn.TEXTJOIN(\", \",TRUE,IF(A60='Projectwize (Do not edit)'!$B$2:$B$7,'Projectwize (Do not edit)'!$C$2:$C$7,\"\"))","v":""}]
[null,{"$f":"_xlfn.TEXTJOIN(\", \",TRUE,IF(A61='Projectwize (Do not edit)'!$B$2:$B$7,'Projectwize (Do not edit)'!$C$2:$C$7,\"\"))","v":""}]
[null,{"$f":"_xlfn.TEXTJOIN(\", \",TRUE,IF(A62='Projectwize (Do not edit)'!$B$2:$B$7,'Projectwize (Do not edit)'!$C$2:$C$7,\"\"))","v":""}]
[null,{"$f":"_xlfn.TEXTJOIN(\", \",TRUE,IF(A63='Projectwize (Do not edit)'!$B$2:$B$7,'Projectwize (Do not edit)'!$C$2:$C$7,\"\"))","v":""}]
[null,{"$f":"_xlfn.TEXTJOIN(\", \",TRUE,IF(A64='Projectwize (Do not edit)'!$B$2:$B$7,'Projectwize (Do not edit)'!$C$2:$C$7,\"\"))","v":""}]
[null,{"$f":"_xlfn.TEXTJOIN(\", \",TRUE,IF(A65='Projectwize (Do not edit)'!$B$2:$B$7,'Projectwize (Do not edit)'!$C$2:$C$7,\"\"))","v":""}]
[null,{"$f":"_xlfn.TEXTJOIN(\", \",TRUE,IF(A66='Projectwize (Do not edit)'!$B$2:$B$7,'Projectwize (Do not edit)'!$C$2:$C$7,\"\"))","v":""}]
[null,{"$f":"_xlfn.TEXTJOIN(\", \",TRUE,IF(A67='Projectwize (Do not edit)'!$B$2:$B$7,'Projectwize (Do not edit)'!$C$2:$C$7,\"\"))","v":""}]
[null,{"$f":"_xlfn.TEXTJOIN(\", \",TRUE,IF(A68='Projectwize (Do not edit)'!$B$2:$B$7,'Projectwize (Do not edit)'!$C$2:$C$7,\"\"))","v":""}]
[null,{"$f":"_xlfn.TEXTJOIN(\", \",TRUE,IF(A69='Projectwize (Do not edit)'!$B$2:$B$7,'Projectwize (Do not edit)'!$C$2:$C$7,\"\"))","v":""}]
[null,{"$f":"_xlfn.TEXTJOIN(\", \",TRUE,IF(A70='Projectwize (Do not edit)'!$B$2:$B$7,'Projectwize (Do not edit)'!$C$2:$C$7,\"\"))","v":""}]
[null,{"$f":"_xlfn.TEXTJOIN(\", \",TRUE,IF(A71='Projectwize (Do not edit)'!$B$2:$B$7,'Projectwize (Do not edit)'!$C$2:$C$7,\"\"))","v":""}]
[null,{"$f":"_xlfn.TEXTJOIN(\", \",TRUE,IF(A72='Projectwize (Do not edit)'!$B$2:$B$7,'Projectwize (Do not edit)'!$C$2:$C$7,\"\"))","v":""}]
[null,{"$f":"_xlfn.TEXTJOIN(\", \",TRUE,IF(A73='Projectwize (Do not edit)'!$B$2:$B$7,'Projectwize (Do not edit)'!$C$2:$C$7,\"\"))","v":""}]
[null,{"$f":"_xlfn.TEXTJOIN(\", \",TRUE,IF(A74='Projectwize (Do not edit)'!$B$2:$B$7,'Projectwize (Do not edit)'!$C$2:$C$7,\"\"))","v":""}]
[null,{"$f":"_xlfn.TEXTJOIN(\", \",TRUE,IF(A75='Projectwize (Do not edit)'!$B$2:$B$7,'Projectwize (Do not edit)'!$C$2:$C$7,\"\"))","v":""}]
[null,{"$f":"_xlfn.TEXTJOIN(\", \",TRUE,IF(A76='Projectwize (Do not edit)'!$B$2:$B$7,'Projectwize (Do not edit)'!$C$2:$C$7,\"\"))","v":""}]
[null,{"$f":"_xlfn.TEXTJOIN(\", \",TRUE,IF(A77='Projectwize (Do not edit)'!$B$2:$B$7,'Projectwize (Do not edit)'!$C$2:$C$7,\"\"))","v":""}]
[null,{"$f":"_xlfn.TEXTJOIN(\", \",TRUE,IF(A78='Projectwize (Do not edit)'!$B$2:$B$7,'Projectwize (Do not edit)'!$C$2:$C$7,\"\"))","v":""}]
[null,{"$f":"_xlfn.TEXTJOIN(\", \",TRUE,IF(A79='Projectwize (Do not edit)'!$B$2:$B$7,'Projectwize (Do not edit)'!$C$2:$C$7,\"\"))","v":""}]
[null,{"$f":"_xlfn.TEXTJOIN(\", \",TRUE,IF(A80='Projectwize (Do not edit)'!$B$2:$B$7,'Projectwize (Do not edit)'!$C$2:$C$7,\"\"))","v":""}]
[null,{"$f":"_xlfn.TEXTJOIN(\", \",TRUE,IF(A81='Projectwize (Do not edit)'!$B$2:$B$7,'Projectwize (Do not edit)'!$C$2:$C$7,\"\"))","v":""}]
[null,{"$f":"_xlfn.TEXTJOIN(\", \",TRUE,IF(A82='Projectwize (Do not edit)'!$B$2:$B$7,'Projectwize (Do not edit)'!$C$2:$C$7,\"\"))","v":""}]
[null,{"$f":"_xlfn.TEXTJOIN(\", \",TRUE,IF(A83='Projectwize (Do not edit)'!$B$2:$B$7,'Projectwize (Do not edit)'!$C$2:$C$7,\"\"))","v":""}]
[null,{"$f":"_xlfn.TEXTJOIN(\", \",TRUE,IF(A84='Projectwize (Do not edit)'!$B$2:$B$7,'Projectwize (Do not edit)'!$C$2:$C$7,\"\"))","v":""}]
[null,{"$f":"_xlfn.TEXTJOIN(\", \",TRUE,IF(A85='Projectwize (Do not edit)'!$B$2:$B$7,'Projectwize (Do not edit)'!$C$2:$C$7,\"\"))","v":""}]
[null,{"$f":"_xlfn.TEXTJOIN(\", \",TRUE,IF(A86='Projectwize (Do not edit)'!$B$2:$B$7,'Projectwize (Do not edit)'!$C$2:$C$7,\"\"))","v":""}]
[null,{"$f":"_xlfn.TEXTJOIN(\", \",TRUE,IF(A87='Projectwize (Do not edit)'!$B$2:$B$7,'Projectwize (Do not edit)'!$C$2:$C$7,\"\"))","v":""}]
[null,{"$f":"_xlfn.TEXTJOIN(\", \",TRUE,IF(A88='Projectwize (Do not edit)'!$B$2:$B$7,'Projectwize (Do not edit)'!$C$2:$C$7,\"\"))","v":""}]
[null,{"$f":"_xlfn.TEXTJOIN(\", \",TRUE,IF(A89='Projectwize (Do not edit)'!$B$2:$B$7,'Projectwize (Do not edit)'!$C$2:$C$7,\"\"))","v":""}]
[null,{"$f":"_xlfn.TEXTJOIN(\", \",TRUE,IF(A90='Projectwize (Do not edit)'!$B$2:$B$7,'Projectwize (Do not edit)'!$C$2:$C$7,\"\"))","v":""}]
[null,{"$f":"_xlfn.TEXTJOIN(\", \",TRUE,IF(A91='Projectwize (Do not edit)'!$B$2:$B$7,'Projectwize (Do not edit)'!$C$2:$C$7,\"\"))","v":""}]
[null,{"$f":"_xlfn.TEXTJOIN(\", \",TRUE,IF(A92='Projectwize (Do not edit)'!$B$2:$B$7,'Projectwize (Do not edit)'!$C$2:$C$7,\"\"))","v":""}]
[null,{"$f":"_xlfn.TEXTJOIN(\", \",TRUE,IF(A93='Projectwize (Do not edit)'!$B$2:$B$7,'Projectwize (Do not edit)'!$C$2:$C$7,\"\"))","v":""}]
[null,{"$f":"_xlfn.TEXTJOIN(\", \",TRUE,IF(A94='Projectwize (Do not edit)'!$B$2:$B$7,'Projectwize (Do not edit)'!$C$2:$C$7,\"\"))","v":""}]
[null,{"$f":"_xlfn.TEXTJOIN(\", \",TRUE,IF(A95='Projectwize (Do not edit)'!$B$2:$B$7,'Projectwize (Do not edit)'!$C$2:$C$7,\"\"))","v":""}]
[null,{"$f":"_xlfn.TEXTJOIN(\", \",TRUE,IF(A96='Projectwize (Do not edit)'!$B$2:$B$7,'Projectwize (Do not edit)'!$C$2:$C$7,\"\"))","v":""}]
[null,{"$f":"_xlfn.TEXTJOIN(\", \",TRUE,IF(A97='Projectwize (Do not edit)'!$B$2:$B$7,'Projectwize (Do not edit)'!$C$2:$C$7,\"\"))","v":""}]
[null,{"$f":"_xlfn.TEXTJOIN(\", \",TRUE,IF(A98='Projectwize (Do not edit)'!$B$2:$B$7,'Projectwize (Do not edit)'!$C$2:$C$7,\"\"))","v":""}]
[null,{"$f":"_xlfn.TEXTJOIN(\", \",TRUE,IF(A99='Projectwize (Do not edit)'!$B$2:$B$7,'Projectwize (Do not edit)'!$C$2:$C$7,\"\"))","v":""}]
[null,{"$f":"_xlfn.TEXTJOIN(\", \",TRUE,IF(A100='Projectwize (Do not edit)'!$B$2:$B$7,'Projectwize (Do not edit)'!$C$2:$C$7,\"\"))","v":""}]
[null,{"$f":"_xlfn.TEXTJOIN(\", \",TRUE,IF(A101='Projectwize (Do not edit)'!$B$2:$B$7,'Projectwize (Do not edit)'!$C$2:$C$7,\"\"))","v":""}]
[null,{"$f":"_xlfn.TEXTJOIN(\", \",TRUE,IF(A102='Projectwize (Do not edit)'!$B$2:$B$7,'Projectwize (Do not edit)'!$C$2:$C$7,\"\"))","v":""}]
[null,{"$f":"_xlfn.TEXTJOIN(\", \",TRUE,IF(A103='Projectwize (Do not edit)'!$B$2:$B$7,'Projectwize (Do not edit)'!$C$2:$C$7,\"\"))","v":""}]
[null,{"$f":"_xlfn.TEXTJOIN(\", \",TRUE,IF(A104='Projectwize (Do not edit)'!$B$2:$B$7,'Projectwize (Do not edit)'!$C$2:$C$7,\"\"))","v":""}]
[null,{"$f":"_xlfn.TEXTJOIN(\", \",TRUE,IF(A105='Projectwize (Do not edit)'!$B$2:$B$7,'Projectwize (Do not edit)'!$C$2:$C$7,\"\"))","v":""}]
[null,{"$f":"_xlfn.TEXTJOIN(\", \",TRUE,IF(A106='Projectwize (Do not edit)'!$B$2:$B$7,'Projectwize (Do not edit)'!$C$2:$C$7,\"\"))","v":""}]
[null,{"$f":"_xlfn.TEXTJOIN(\", \",TRUE,IF(A107='Projectwize (Do not edit)'!$B$2:$B$7,'Projectwize (Do not edit)'!$C$2:$C$7,\"\"))","v":""}]
[null,{"$f":"_xlfn.TEXTJOIN(\", \",TRUE,IF(A108='Projectwize (Do not edit)'!$B$2:$B$7,'Projectwize (Do not edit)'!$C$2:$C$7,\"\"))","v":""}]
[null,{"$f":"_xlfn.TEXTJOIN(\", \",TRUE,IF(A109='Projectwize (Do not edit)'!$B$2:$B$7,'Projectwize (Do not edit)'!$C$2:$C$7,\"\"))","v":""}]
[null,{"$f":"_xlfn.TEXTJOIN(\", \",TRUE,IF(A110='Projectwize (Do not edit)'!$B$2:$B$7,'Projectwize (Do not edit)'!$C$2:$C$7,\"\"))","v":""}]
[null,{"$f":"_xlfn.TEXTJOIN(\", \",TRUE,IF(A111='Projectwize (Do not edit)'!$B$2:$B$7,'Projectwize (Do not edit)'!$C$2:$C$7,\"\"))","v":""}]
[null,{"$f":"_xlfn.TEXTJOIN(\", \",TRUE,IF(A112='Projectwize (Do not edit)'!$B$2:$B$7,'Projectwize (Do not edit)'!$C$2:$C$7,\"\"))","v":""}]
[null,{"$f":"_xlfn.TEXTJOIN(\", \",TRUE,IF(A113='Projectwize (Do not edit)'!$B$2:$B$7,'Projectwize (Do not edit)'!$C$2:$C$7,\"\"))","v":""}]
[null,{"$f":"_xlfn.TEXTJOIN(\", \",TRUE,IF(A114='Projectwize (Do not edit)'!$B$2:$B$7,'Projectwize (Do not edit)'!$C$2:$C$7,\"\"))","v":""}]
[null,{"$f":"_xlfn.TEXTJOIN(\", \",TRUE,IF(A115='Projectwize (Do not edit)'!$B$2:$B$7,'Projectwize (Do not edit)'!$C$2:$C$7,\"\"))","v":""}]
[null,{"$f":"_xlfn.TEXTJOIN(\", \",TRUE,IF(A116='Projectwize (Do not edit)'!$B$2:$B$7,'Projectwize (Do not edit)'!$C$2:$C$7,\"\"))","v":""}]
[null,{"$f":"_xlfn.TEXTJOIN(\", \",TRUE,IF(A117='Projectwize (Do not edit)'!$B$2:$B$7,'Projectwize (Do not edit)'!$C$2:$C$7,\"\"))","v":""}]
[null,{"$f":"_xlfn.TEXTJOIN(\", \",TRUE,IF(A118='Projectwize (Do not edit)'!$B$2:$B$7,'Projectwize (Do not edit)'!$C$2:$C$7,\"\"))","v":""}]
[null,{"$f":"_xlfn.TEXTJOIN(\", \",TRUE,IF(A119='Projectwize (Do not edit)'!$B$2:$B$7,'Projectwize (Do not edit)'!$C$2:$C$7,\"\"))","v":""}]
[null,{"$f":"_xlfn.TEXTJOIN(\", \",TRUE,IF(A120='Projectwize (Do not edit)'!$B$2:$B$7,'Projectwize (Do not edit)'!$C$2:$C$7,\"\"))","v":""}]
[null,{"$f":"_xlfn.TEXTJOIN(\", \",TRUE,IF(A121='Projectwize (Do not edit)'!$B$2:$B$7,'Projectwize (Do not edit)'!$C$2:$C$7,\"\"))","v":""}]
[null,{"$f":"_xlfn.TEXTJOIN(\", \",TRUE,IF(A122='Projectwize (Do not edit)'!$B$2:$B$7,'Projectwize (Do not edit)'!$C$2:$C$7,\"\"))","v":""}]
[null,{"$f":"_xlfn.TEXTJOIN(\", \",TRUE,IF(A123='Projectwize (Do not edit)'!$B$2:$B$7,'Projectwize (Do not edit)'!$C$2:$C$7,\"\"))","v":""}]
[null,{"$f":"_xlfn.TEXTJOIN(\", \",TRUE,IF(A124='Projectwize (Do not edit)'!$B$2:$B$7,'Projectwize (Do not edit)'!$C$2:$C$7,\"\"))","v":""}]
[null,{"$f":"_xlfn.TEXTJOIN(\", \",TRUE,IF(A125='Projectwize (Do not edit)'!$B$2:$B$7,'Projectwize (Do not edit)'!$C$2:$C$7,\"\"))","v":""}]
[null,{"$f":"_xlfn.TEXTJOIN(\", \",TRUE,IF(A126='Projectwize (Do not edit)'!$B$2:$B$7,'Projectwize (Do not edit)'!$C$2:$C$7,\"\"))","v":""}]
[null,{"$f":"_xlfn.TEXTJOIN(\", \",TRUE,IF(A127='Projectwize (Do not edit)'!$B$2:$B$7,'Projectwize (Do not edit)'!$C$2:$C$7,\"\"))","v":""}]
[null,{"$f":"_xlfn.TEXTJOIN(\", \",TRUE,IF(A128='Projectwize (Do not edit)'!$B$2:$B$7,'Projectwize (Do not edit)'!$C$2:$C$7,\"\"))","v":""}]
[null,{"$f":"_xlfn.TEXTJOIN(\", \",TRUE,IF(A129='Projectwize (Do not edit)'!$B$2:$B$7,'Projectwize (Do not edit)'!$C$2:$C$7,\"\"))","v":""}]
[null,{"$f":"_xlfn.TEXTJOIN(\", \",TRUE,IF(A130='Projectwize (Do not edit)'!$B$2:$B$7,'Projectwize (Do not edit)'!$C$2:$C$7,\"\"))","v":""}]
[null,{"$f":"_xlfn.TEXTJOIN(\", \",TRUE,IF(A131='Projectwize (Do not edit)'!$B$2:$B$7,'Projectwize (Do not edit)'!$C$2:$C$7,\"\"))","v":""}]
[null,{"$f":"_xlfn.TEXTJOIN(\", \",TRUE,IF(A132='Projectwize (Do not edit)'!$B$2:$B$7,'Projectwize (Do not edit)'!$C$2:$C$7,\"\"))","v":""}]
[null,{"$f":"_xlfn.TEXTJOIN(\", \",TRUE,IF(A133='Projectwize (Do not edit)'!$B$2:$B$7,'Projectwize (Do not edit)'!$C$2:$C$7,\"\"))","v":""}]
[null,{"$f":"_xlfn.TEXTJOIN(\", \",TRUE,IF(A134='Projectwize (Do not edit)'!$B$2:$B$7,'Projectwize (Do not edit)'!$C$2:$C$7,\"\"))","v":""}]
[null,{"$f":"_xlfn.TEXTJOIN(\", \",TRUE,IF(A135='Projectwize (Do not edit)'!$B$2:$B$7,'Projectwize (Do not edit)'!$C$2:$C$7,\"\"))","v":""}]
[null,{"$f":"_xlfn.TEXTJOIN(\", \",TRUE,IF(A136='Projectwize (Do not edit)'!$B$2:$B$7,'Projectwize (Do not edit)'!$C$2:$C$7,\"\"))","v":""}]
[null,{"$f":"_xlfn.TEXTJOIN(\", \",TRUE,IF(A137='Projectwize (Do not edit)'!$B$2:$B$7,'Projectwize (Do not edit)'!$C$2:$C$7,\"\"))","v":""}]
[null,{"$f":"_xlfn.TEXTJOIN(\", \",TRUE,IF(A138='Projectwize (Do not edit)'!$B$2:$B$7,'Projectwize (Do not edit)'!$C$2:$C$7,\"\"))","v":""}]
[null,{"$f":"_xlfn.TEXTJOIN(\", \",TRUE,IF(A139='Projectwize (Do not edit)'!$B$2:$B$7,'Projectwize (Do not edit)'!$C$2:$C$7,\"\"))","v":""}]
[null,{"$f":"_xlfn.TEXTJOIN(\", \",TRUE,IF(A140='Projectwize (Do not edit)'!$B$2:$B$7,'Projectwize (Do not edit)'!$C$2:$C$7,\"\"))","v":""}]
[null,{"$f":"_xlfn.TEXTJOIN(\", \",TRUE,IF(A141='Projectwize (Do not edit)'!$B$2:$B$7,'Projectwize (Do not edit)'!$C$2:$C$7,\"\"))","v":""}]
[null,{"$f":"_xlfn.TEXTJOIN(\", \",TRUE,IF(A142='Projectwize (Do not edit)'!$B$2:$B$7,'Projectwize (Do not edit)'!$C$2:$C$7,\"\"))","v":""}]
[null,{"$f":"_xlfn.TEXTJOIN(\", \",TRUE,IF(A143='Projectwize (Do not edit)'!$B$2:$B$7,'Projectwize (Do not edit)'!$C$2:$C$7,\"\"))","v":""}]
[null,{"$f":"_xlfn.TEXTJOIN(\", \",TRUE,IF(A144='Projectwize (Do not edit)'!$B$2:$B$7,'Projectwize (Do not edit)'!$C$2:$C$7,\"\"))","v":""}]
[null,{"$f":"_xlfn.TEXTJOIN(\", \",TRUE,IF(A145='Projectwize (Do not edit)'!$B$2:$B$7,'Projectwize (Do not edit)'!$C$2:$C$7,\"\"))","v":""}]
[null,{"$f":"_xlfn.TEXTJOIN(\", \",TRUE,IF(A146='Projectwize (Do not edit)'!$B$2:$B$7,'Projectwize (Do not edit)'!$C$2:$C$7,\"\"))","v":""}]
[null,{"$f":"_xlfn.TEXTJOIN(\", \",TRUE,IF(A147='Projectwize (Do not edit)'!$B$2:$B$7,'Projectwize (Do not edit)'!$C$2:$C$7,\"\"))","v":""}]
[null,{"$f":"_xlfn.TEXTJOIN(\", \",TRUE,IF(A148='Projectwize (Do not edit)'!$B$2:$B$7,'Projectwize (Do not edit)'!$C$2:$C$7,\"\"))","v":""}]
[null,{"$f":"_xlfn.TEXTJOIN(\", \",TRUE,IF(A149='Projectwize (Do not edit)'!$B$2:$B$7,'Projectwize (Do not edit)'!$C$2:$C$7,\"\"))","v":""}]
[null,{"$f":"_xlfn.TEXTJOIN(\", \",TRUE,IF(A150='Projectwize (Do not edit)'!$B$2:$B$7,'Projectwize (Do not edit)'!$C$2:$C$7,\"\"))","v":""}]
[null,{"$f":"_xlfn.TEXTJOIN(\", \",TRUE,IF(A151='Projectwize (Do not edit)'!$B$2:$B$7,'Projectwize (Do not edit)'!$C$2:$C$7,\"\"))","v":""}]
[null,{"$f":"_xlfn.TEXTJOIN(\", \",TRUE,IF(A152='Projectwize (Do not edit)'!$B$2:$B$7,'Projectwize (Do not edit)'!$C$2:$C$7,\"\"))","v":""}]
[null,{"$f":"_xlfn.TEXTJOIN(\", \",TRUE,IF(A153='Projectwize (Do not edit)'!$B$2:$B$7,'Projectwize (Do not edit)'!$C$2:$C$7,\"\"))","v":""}]
[null,{"$f":"_xlfn.TEXTJOIN(\", \",TRUE,IF(A154='Projectwize (Do not edit)'!$B$2:$B$7,'Projectwize (Do not edit)'!$C$2:$C$7,\"\"))","v":""}]
[null,{"$f":"_xlfn.TEXTJOIN(\", \",TRUE,IF(A155='Projectwize (Do not edit)'!$B$2:$B$7,'Projectwize (Do not edit)'!$C$2:$C$7,\"\"))","v":""}]
[null,{"$f":"_xlfn.TEXTJOIN(\", \",TRUE,IF(A156='Projectwize (Do not edit)'!$B$2:$B$7,'Projectwize (Do not edit)'!$C$2:$C$7,\"\"))","v":""}]
[null,{"$f":"_xlfn.TEXTJOIN(\", \",TRUE,IF(A157='Projectwize (Do not edit)'!$B$2:$B$7,'Projectwize (Do not edit)'!$C$2:$C$7,\"\"))","v":""}]
[null,{"$f":"_xlfn.TEXTJOIN(\", \",TRUE,IF(A158='Projectwize (Do not edit)'!$B$2:$B$7,'Projectwize (Do not edit)'!$C$2:$C$7,\"\"))","v":""}]
[null,{"$f":"_xlfn.TEXTJOIN(\", \",TRUE,IF(A159='Projectwize (Do not edit)'!$B$2:$B$7,'Projectwize (Do not edit)'!$C$2:$C$7,\"\"))","v":""}]
[null,{"$f":"_xlfn.TEXTJOIN(\", \",TRUE,IF(A160='Projectwize (Do not edit)'!$B$2:$B$7,'Projectwize (Do not edit)'!$C$2:$C$7,\"\"))","v":""}]
[null,{"$f":"_xlfn.TEXTJOIN(\", \",TRUE,IF(A161='Projectwize (Do not edit)'!$B$2:$B$7,'Projectwize (Do not edit)'!$C$2:$C$7,\"\"))","v":""}]
[null,{"$f":"_xlfn.TEXTJOIN(\", \",TRUE,IF(A162='Projectwize (Do not edit)'!$B$2:$B$7,'Projectwize (Do not edit)'!$C$2:$C$7,\"\"))","v":""}]
[null,{"$f":"_xlfn.TEXTJOIN(\", \",TRUE,IF(A163='Projectwize (Do not edit)'!$B$2:$B$7,'Projectwize (Do not edit)'!$C$2:$C$7,\"\"))","v":""}]
[null,{"$f":"_xlfn.TEXTJOIN(\", \",TRUE,IF(A164='Projectwize (Do not edit)'!$B$2:$B$7,'Projectwize (Do not edit)'!$C$2:$C$7,\"\"))","v":""}]
[null,{"$f":"_xlfn.TEXTJOIN(\", \",TRUE,IF(A165='Projectwize (Do not edit)'!$B$2:$B$7,'Projectwize (Do not edit)'!$C$2:$C$7,\"\"))","v":""}]
[null,{"$f":"_xlfn.TEXTJOIN(\", \",TRUE,IF(A166='Projectwize (Do not edit)'!$B$2:$B$7,'Projectwize (Do not edit)'!$C$2:$C$7,\"\"))","v":""}]
[null,{"$f":"_xlfn.TEXTJOIN(\", \",TRUE,IF(A167='Projectwize (Do not edit)'!$B$2:$B$7,'Projectwize (Do not edit)'!$C$2:$C$7,\"\"))","v":""}]
[null,{"$f":"_xlfn.TEXTJOIN(\", \",TRUE,IF(A168='Projectwize (Do not edit)'!$B$2:$B$7,'Projectwize (Do not edit)'!$C$2:$C$7,\"\"))","v":""}]
[null,{"$f":"_xlfn.TEXTJOIN(\", \",TRUE,IF(A169='Projectwize (Do not edit)'!$B$2:$B$7,'Projectwize (Do not edit)'!$C$2:$C$7,\"\"))","v":""}]
[null,{"$f":"_xlfn.TEXTJOIN(\", \",TRUE,IF(A170='Projectwize (Do not edit)'!$B$2:$B$7,'Projectwize (Do not edit)'!$C$2:$C$7,\"\"))","v":""}]
[null,{"$f":"_xlfn.TEXTJOIN(\", \",TRUE,IF(A171='Projectwize (Do not edit)'!$B$2:$B$7,'Projectwize (Do not edit)'!$C$2:$C$7,\"\"))","v":""}]
[null,{"$f":"_xlfn.TEXTJOIN(\", \",TRUE,IF(A172='Projectwize (Do not edit)'!$B$2:$B$7,'Projectwize (Do not edit)'!$C$2:$C$7,\"\"))","v":""}]
[null,{"$f":"_xlfn.TEXTJOIN(\", \",TRUE,IF(A173='Projectwize (Do not edit)'!$B$2:$B$7,'Projectwize (Do not edit)'!$C$2:$C$7,\"\"))","v":""}]
[null,{"$f":"_xlfn.TEXTJOIN(\", \",TRUE,IF(A174='Projectwize (Do not edit)'!$B$2:$B$7,'Projectwize (Do not edit)'!$C$2:$C$7,\"\"))","v":""}]
[null,{"$f":"_xlfn.TEXTJOIN(\", \",TRUE,IF(A175='Projectwize (Do not edit)'!$B$2:$B$7,'Projectwize (Do not edit)'!$C$2:$C$7,\"\"))","v":""}]
[null,{"$f":"_xlfn.TEXTJOIN(\", \",TRUE,IF(A176='Projectwize (Do not edit)'!$B$2:$B$7,'Projectwize (Do not edit)'!$C$2:$C$7,\"\"))","v":""}]
[null,{"$f":"_xlfn.TEXTJOIN(\", \",TRUE,IF(A177='Projectwize (Do not edit)'!$B$2:$B$7,'Projectwize (Do not edit)'!$C$2:$C$7,\"\"))","v":""}]
[null,{"$f":"_xlfn.TEXTJOIN(\", \",TRUE,IF(A178='Projectwize (Do not edit)'!$B$2:$B$7,'Projectwize (Do not edit)'!$C$2:$C$7,\"\"))","v":""}]
[null,{"$f":"_xlfn.TEXTJOIN(\", \",TRUE,IF(A179='Projectwize (Do not edit)'!$B$2:$B$7,'Projectwize (Do not edit)'!$C$2:$C$7,\"\"))","v":""}]
[null,{"$f":"_xlfn.TEXTJOIN(\", \",TRUE,IF(A180='Projectwize (Do not edit)'!$B$2:$B$7,'Projectwize (Do not edit)'!$C$2:$C$7,\"\"))","v":""}]
[null,{"$f":"_xlfn.TEXTJOIN(\", \",TRUE,IF(A181='Projectwize (Do not edit)'!$B$2:$B$7,'Projectwize (Do not edit)'!$C$2:$C$7,\"\"))","v":""}]
[null,{"$f":"_xlfn.TEXTJOIN(\", \",TRUE,IF(A182='Projectwize (Do not edit)'!$B$2:$B$7,'Projectwize (Do not edit)'!$C$2:$C$7,\"\"))","v":""}]
[null,{"$f":"_xlfn.TEXTJOIN(\", \",TRUE,IF(A183='Projectwize (Do not edit)'!$B$2:$B$7,'Projectwize (Do not edit)'!$C$2:$C$7,\"\"))","v":""}]
[null,{"$f":"_xlfn.TEXTJOIN(\", \",TRUE,IF(A184='Projectwize (Do not edit)'!$B$2:$B$7,'Projectwize (Do not edit)'!$C$2:$C$7,\"\"))","v":""}]
[null,{"$f":"_xlfn.TEXTJOIN(\", \",TRUE,IF(A185='Projectwize (Do not edit)'!$B$2:$B$7,'Projectwize (Do not edit)'!$C$2:$C$7,\"\"))","v":""}]
[null,{"$f":"_xlfn.TEXTJOIN(\", \",TRUE,IF(A186='Projectwize (Do not edit)'!$B$2:$B$7,'Projectwize (Do not edit)'!$C$2:$C$7,\"\"))","v":""}]
[null,{"$f":"_xlfn.TEXTJOIN(\", \",TRUE,IF(A187='Projectwize (Do not edit)'!$B$2:$B$7,'Projectwize (Do not edit)'!$C$2:$C$7,\"\"))","v":""}]
[null,{"$f":"_xlfn.TEXTJOIN(\", \",TRUE,IF(A188='Projectwize (Do not edit)'!$B$2:$B$7,'Projectwize (Do not edit)'!$C$2:$C$7,\"\"))","v":""}]
[null,{"$f":"_xlfn.TEXTJOIN(\", \",TRUE,IF(A189='Projectwize (Do not edit)'!$B$2:$B$7,'Projectwize (Do not edit)'!$C$2:$C$7,\"\"))","v":""}]
[null,{"$f":"_xlfn.TEXTJOIN(\", \",TRUE,IF(A190='Projectwize (Do not edit)'!$B$2:$B$7,'Projectwize (Do not edit)'!$C$2:$C$7,\"\"))","v":""}]
[null,{"$f":"_xlfn.TEXTJOIN(\", \",TRUE,IF(A191='Projectwize (Do not edit)'!$B$2:$B$7,'Projectwize (Do not edit)'!$C$2:$C$7,\"\"))","v":""}]
[null,{"$f":"_xlfn.TEXTJOIN(\", \",TRUE,IF(A192='Projectwize (Do not edit)'!$B$2:$B$7,'Projectwize (Do not edit)'!$C$2:$C$7,\"\"))","v":""}]
[null,{"$f":"_xlfn.TEXTJOIN(\", \",TRUE,IF(A193='Projectwize (Do not edit)'!$B$2:$B$7,'Projectwize (Do not edit)'!$C$2:$C$7,\"\"))","v":""}]
[null,{"$f":"_xlfn.TEXTJOIN(\", \",TRUE,IF(A194='Projectwize (Do not edit)'!$B$2:$B$7,'Projectwize (Do not edit)'!$C$2:$C$7,\"\"))","v":""}]
[null,{"$f":"_xlfn.TEXTJOIN(\", \",TRUE,IF(A195='Projectwize (Do not edit)'!$B$2:$B$7,'Projectwize (Do not edit)'!$C$2:$C$7,\"\"))","v":""}]
[null,{"$f":"_xlfn.TEXTJOIN(\", \",TRUE,IF(A196='Projectwize (Do not edit)'!$B$2:$B$7,'Projectwize (Do not edit)'!$C$2:$C$7,\"\"))","v":""}]
[null,{"$f":"_xlfn.TEXTJOIN(\", \",TRUE,IF(A197='Projectwize (Do not edit)'!$B$2:$B$7,'Projectwize (Do not edit)'!$C$2:$C$7,\"\"))","v":""}]
[null,{"$f":"_xlfn.TEXTJOIN(\", \",TRUE,IF(A198='Projectwize (Do not edit)'!$B$2:$B$7,'Projectwize (Do not edit)'!$C$2:$C$7,\"\"))","v":""}]
[null,{"$f":"_xlfn.TEXTJOIN(\", \",TRUE,IF(A199='Projectwize (Do not edit)'!$B$2:$B$7,'Projectwize (Do not edit)'!$C$2:$C$7,\"\"))","v":""}]
[null,{"$f":"_xlfn.TEXTJOIN(\", \",TRUE,IF(A200='Projectwize (Do not edit)'!$B$2:$B$7,'Projectwize (Do not edit)'!$C$2:$C$7,\"\"))","v":""}]
[null,{"$f":"_xlfn.TEXTJOIN(\", \",TRUE,IF(A201='Projectwize (Do not edit)'!$B$2:$B$7,'Projectwize (Do not edit)'!$C$2:$C$7,\"\"))","v":""}]
[null,{"$f":"_xlfn.TEXTJOIN(\", \",TRUE,IF(A202='Projectwize (Do not edit)'!$B$2:$B$7,'Projectwize (Do not edit)'!$C$2:$C$7,\"\"))","v":""}]
[null,{"$f":"_xlfn.TEXTJOIN(\", \",TRUE,IF(A203='Projectwize (Do not edit)'!$B$2:$B$7,'Projectwize (Do not edit)'!$C$2:$C$7,\"\"))","v":""}]
[null,{"$f":"_xlfn.TEXTJOIN(\", \",TRUE,IF(A204='Projectwize (Do not edit)'!$B$2:$B$7,'Projectwize (Do not edit)'!$C$2:$C$7,\"\"))","v":""}]
[null,{"$f":"_xlfn.TEXTJOIN(\", \",TRUE,IF(A205='Projectwize (Do not edit)'!$B$2:$B$7,'Projectwize (Do not edit)'!$C$2:$C$7,\"\"))","v":""}]
[null,{"$f":"_xlfn.TEXTJOIN(\", \",TRUE,IF(A206='Projectwize (Do not edit)'!$B$2:$B$7,'Projectwize (Do not edit)'!$C$2:$C$7,\"\"))","v":""}]
[null,{"$f":"_xlfn.TEXTJOIN(\", \",TRUE,IF(A207='Projectwize (Do not edit)'!$B$2:$B$7,'Projectwize (Do not edit)'!$C$2:$C$7,\"\"))","v":""}]
[null,{"$f":"_xlfn.TEXTJOIN(\", \",TRUE,IF(A208='Projectwize (Do not edit)'!$B$2:$B$7,'Projectwize (Do not edit)'!$C$2:$C$7,\"\"))","v":""}]
[null,{"$f":"_xlfn.TEXTJOIN(\", \",TRUE,IF(A209='Projectwize (Do not edit)'!$B$2:$B$7,'Projectwize (Do not edit)'!$C$2:$C$7,\"\"))","v":""}]
[null,{"$f":"_xlfn.TEXTJOIN(\", \",TRUE,IF(A210='Projectwize (Do not edit)'!$B$2:$B$7,'Projectwize (Do not edit)'!$C$2:$C$7,\"\"))","v":""}]
[null,{"$f":"_xlfn.TEXTJOIN(\", \",TRUE,IF(A211='Projectwize (Do not edit)'!$B$2:$B$7,'Projectwize (Do not edit)'!$C$2:$C$7,\"\"))","v":""}]
[null,{"$f":"_xlfn.TEXTJOIN(\", \",TRUE,IF(A212='Projectwize (Do not edit)'!$B$2:$B$7,'Projectwize (Do not edit)'!$C$2:$C$7,\"\"))","v":""}]
[null,{"$f":"_xlfn.TEXTJOIN(\", \",TRUE,IF(A213='Projectwize (Do not edit)'!$B$2:$B$7,'Projectwize (Do not edit)'!$C$2:$C$7,\"\"))","v":""}]
[null,{"$f":"_xlfn.TEXTJOIN(\", \",TRUE,IF(A214='Projectwize (Do not edit)'!$B$2:$B$7,'Projectwize (Do not edit)'!$C$2:$C$7,\"\"))","v":""}]
[null,{"$f":"_xlfn.TEXTJOIN(\", \",TRUE,IF(A215='Projectwize (Do not edit)'!$B$2:$B$7,'Projectwize (Do not edit)'!$C$2:$C$7,\"\"))","v":""}]
[null,{"$f":"_xlfn.TEXTJOIN(\", \",TRUE,IF(A216='Projectwize (Do not edit)'!$B$2:$B$7,'Projectwize (Do not edit)'!$C$2:$C$7,\"\"))","v":""}]
[null,{"$f":"_xlfn.TEXTJOIN(\", \",TRUE,IF(A217='Projectwize (Do not edit)'!$B$2:$B$7,'Projectwize (Do not edit)'!$C$2:$C$7,\"\"))","v":""}]
[null,{"$f":"_xlfn.TEXTJOIN(\", \",TRUE,IF(A218='Projectwize (Do not edit)'!$B$2:$B$7,'Projectwize (Do not edit)'!$C$2:$C$7,\"\"))","v":""}]
[null,{"$f":"_xlfn.TEXTJOIN(\", \",TRUE,IF(A219='Projectwize (Do not edit)'!$B$2:$B$7,'Projectwize (Do not edit)'!$C$2:$C$7,\"\"))","v":""}]
[null,{"$f":"_xlfn.TEXTJOIN(\", \",TRUE,IF(A220='Projectwize (Do not edit)'!$B$2:$B$7,'Projectwize (Do not edit)'!$C$2:$C$7,\"\"))","v":""}]
[null,{"$f":"_xlfn.TEXTJOIN(\", \",TRUE,IF(A221='Projectwize (Do not edit)'!$B$2:$B$7,'Projectwize (Do not edit)'!$C$2:$C$7,\"\"))","v":""}]
[null,{"$f":"_xlfn.TEXTJOIN(\", \",TRUE,IF(A222='Projectwize (Do not edit)'!$B$2:$B$7,'Projectwize (Do not edit)'!$C$2:$C$7,\"\"))","v":""}]
[null,{"$f":"_xlfn.TEXTJOIN(\", \",TRUE,IF(A223='Projectwize (Do not edit)'!$B$2:$B$7,'Projectwize (Do not edit)'!$C$2:$C$7,\"\"))","v":""}]
[null,{"$f":"_xlfn.TEXTJOIN(\", \",TRUE,IF(A224='Projectwize (Do not edit)'!$B$2:$B$7,'Projectwize (Do not edit)'!$C$2:$C$7,\"\"))","v":""}]
[null,{"$f":"_xlfn.TEXTJOIN(\", \",TRUE,IF(A225='Projectwize (Do not edit)'!$B$2:$B$7,'Projectwize (Do not edit)'!$C$2:$C$7,\"\"))","v":""}]
[null,{"$f":"_xlfn.TEXTJOIN(\", \",TRUE,IF(A226='Projectwize (Do not edit)'!$B$2:$B$7,'Projectwize (Do not edit)'!$C$2:$C$7,\"\"))","v":""}]
[null,{"$f":"_xlfn.TEXTJOIN(\", \",TRUE,IF(A227='Projectwize (Do not edit)'!$B$2:$B$7,'Projectwize (Do not edit)'!$C$2:$C$7,\"\"))","v":""}]
[null,{"$f":"_xlfn.TEXTJOIN(\", \",TRUE,IF(A228='Projectwize (Do not edit)'!$B$2:$B$7,'Projectwize (Do not edit)'!$C$2:$C$7,\"\"))","v":""}]
[null,{"$f":"_xlfn.TEXTJOIN(\", \",TRUE,IF(A229='Projectwize (Do not edit)'!$B$2:$B$7,'Projectwize (Do not edit)'!$C$2:$C$7,\"\"))","v":""}]
[null,{"$f":"_xlfn.TEXTJOIN(\", \",TRUE,IF(A230='Projectwize (Do not edit)'!$B$2:$B$7,'Projectwize (Do not edit)'!$C$2:$C$7,\"\"))","v":""}]
[null,{"$f":"_xlfn.TEXTJOIN(\", \",TRUE,IF(A231='Projectwize (Do not edit)'!$B$2:$B$7,'Projectwize (Do not edit)'!$C$2:$C$7,\"\"))","v":""}]
[null,{"$f":"_xlfn.TEXTJOIN(\", \",TRUE,IF(A232='Projectwize (Do not edit)'!$B$2:$B$7,'Projectwize (Do not edit)'!$C$2:$C$7,\"\"))","v":""}]
[null,{"$f":"_xlfn.TEXTJOIN(\", \",TRUE,IF(A233='Projectwize (Do not edit)'!$B$2:$B$7,'Projectwize (Do not edit)'!$C$2:$C$7,\"\"))","v":""}]
[null,{"$f":"_xlfn.TEXTJOIN(\", \",TRUE,IF(A234='Projectwize (Do not edit)'!$B$2:$B$7,'Projectwize (Do not edit)'!$C$2:$C$7,\"\"))","v":""}]
[null,{"$f":"_xlfn.TEXTJOIN(\", \",TRUE,IF(A235='Projectwize (Do not edit)'!$B$2:$B$7,'Projectwize (Do not edit)'!$C$2:$C$7,\"\"))","v":""}]
[null,{"$f":"_xlfn.TEXTJOIN(\", \",TRUE,IF(A236='Projectwize (Do not edit)'!$B$2:$B$7,'Projectwize (Do not edit)'!$C$2:$C$7,\"\"))","v":""}]
[null,{"$f":"_xlfn.TEXTJOIN(\", \",TRUE,IF(A237='Projectwize (Do not edit)'!$B$2:$B$7,'Projectwize (Do not edit)'!$C$2:$C$7,\"\"))","v":""}]
[null,{"$f":"_xlfn.TEXTJOIN(\", \",TRUE,IF(A238='Projectwize (Do not edit)'!$B$2:$B$7,'Projectwize (Do not edit)'!$C$2:$C$7,\"\"))","v":""}]
[null,{"$f":"_xlfn.TEXTJOIN(\", \",TRUE,IF(A239='Projectwize (Do not edit)'!$B$2:$B$7,'Projectwize (Do not edit)'!$C$2:$C$7,\"\"))","v":""}]
[null,{"$f":"_xlfn.TEXTJOIN(\", \",TRUE,IF(A240='Projectwize (Do not edit)'!$B$2:$B$7,'Projectwize (Do not edit)'!$C$2:$C$7,\"\"))","v":""}]
[null,{"$f":"_xlfn.TEXTJOIN(\", \",TRUE,IF(A241='Projectwize (Do not edit)'!$B$2:$B$7,'Projectwize (Do not edit)'!$C$2:$C$7,\"\"))","v":""}]
[null,{"$f":"_xlfn.TEXTJOIN(\", \",TRUE,IF(A242='Projectwize (Do not edit)'!$B$2:$B$7,'Projectwize (Do not edit)'!$C$2:$C$7,\"\"))","v":""}]
[null,{"$f":"_xlfn.TEXTJOIN(\", \",TRUE,IF(A243='Projectwize (Do not edit)'!$B$2:$B$7,'Projectwize (Do not edit)'!$C$2:$C$7,\"\"))","v":""}]
[null,{"$f":"_xlfn.TEXTJOIN(\", \",TRUE,IF(A244='Projectwize (Do not edit)'!$B$2:$B$7,'Projectwize (Do not edit)'!$C$2:$C$7,\"\"))","v":""}]
[null,{"$f":"_xlfn.TEXTJOIN(\", \",TRUE,IF(A245='Projectwize (Do not edit)'!$B$2:$B$7,'Projectwize (Do not edit)'!$C$2:$C$7,\"\"))","v":""}]
[null,{"$f":"_xlfn.TEXTJOIN(\", \",TRUE,IF(A246='Projectwize (Do not edit)'!$B$2:$B$7,'Projectwize (Do not edit)'!$C$2:$C$7,\"\"))","v":""}]
[null,{"$f":"_xlfn.TEXTJOIN(\", \",TRUE,IF(A247='Projectwize (Do not edit)'!$B$2:$B$7,'Projectwize (Do not edit)'!$C$2:$C$7,\"\"))","v":""}]
[null,{"$f":"_xlfn.TEXTJOIN(\", \",TRUE,IF(A248='Projectwize (Do not edit)'!$B$2:$B$7,'Projectwize (Do not edit)'!$C$2:$C$7,\"\"))","v":""}]
[null,{"$f":"_xlfn.TEXTJOIN(\", \",TRUE,IF(A249='Projectwize (Do not edit)'!$B$2:$B$7,'Projectwize (Do not edit)'!$C$2:$C$7,\"\"))","v":""}]
[null,{"$f":"_xlfn.TEXTJOIN(\", \",TRUE,IF(A250='Projectwize (Do not edit)'!$B$2:$B$7,'Projectwize (Do not edit)'!$C$2:$C$7,\"\"))","v":""}]
[null,{"$f":"_xlfn.TEXTJOIN(\", \",TRUE,IF(A251='Projectwize (Do not edit)'!$B$2:$B$7,'Projectwize (Do not edit)'!$C$2:$C$7,\"\"))","v":""}]
[null,{"$f":"_xlfn.TEXTJOIN(\", \",TRUE,IF(A252='Projectwize (Do not edit)'!$B$2:$B$7,'Projectwize (Do not edit)'!$C$2:$C$7,\"\"))","v":""}]
[null,{"$f":"_xlfn.TEXTJOIN(\", \",TRUE,IF(A253='Projectwize (Do not edit)'!$B$2:$B$7,'Projectwize (Do not edit)'!$C$2:$C$7,\"\"))","v":""}]
[null,{"$f":"_xlfn.TEXTJOIN(\", \",TRUE,IF(A254='Projectwize (Do not edit)'!$B$2:$B$7,'Projectwize (Do not edit)'!$C$2:$C$7,\"\"))","v":""}]
[null,{"$f":"_xlfn.TEXTJOIN(\", \",TRUE,IF(A255='Projectwize (Do not edit)'!$B$2:$B$7,'Projectwize (Do not edit)'!$C$2:$C$7,\"\"))","v":""}]
[null,{"$f":"_xlfn.TEXTJOIN(\", \",TRUE,IF(A256='Projectwize (Do not edit)'!$B$2:$B$7,'Projectwize (Do not edit)'!$C$2:$C$7,\"\"))","v":""}]
[null,{"$f":"_xlfn.TEXTJOIN(\", \",TRUE,IF(A257='Projectwize (Do not edit)'!$B$2:$B$7,'Projectwize (Do not edit)'!$C$2:$C$7,\"\"))","v":""}]
[null,{"$f":"_xlfn.TEXTJOIN(\", \",TRUE,IF(A258='Projectwize (Do not edit)'!$B$2:$B$7,'Projectwize (Do not edit)'!$C$2:$C$7,\"\"))","v":""}]
[null,{"$f":"_xlfn.TEXTJOIN(\", \",TRUE,IF(A259='Projectwize (Do not edit)'!$B$2:$B$7,'Projectwize (Do not edit)'!$C$2:$C$7,\"\"))","v":""}]
[null,{"$f":"_xlfn.TEXTJOIN(\", \",TRUE,IF(A260='Projectwize (Do not edit)'!$B$2:$B$7,'Projectwize (Do not edit)'!$C$2:$C$7,\"\"))","v":""}]
[null,{"$f":"_xlfn.TEXTJOIN(\", \",TRUE,IF(A261='Projectwize (Do not edit)'!$B$2:$B$7,'Projectwize (Do not edit)'!$C$2:$C$7,\"\"))","v":""}]
[null,{"$f":"_xlfn.TEXTJOIN(\", \",TRUE,IF(A262='Projectwize (Do not edit)'!$B$2:$B$7,'Projectwize (Do not edit)'!$C$2:$C$7,\"\"))","v":""}]
[null,{"$f":"_xlfn.TEXTJOIN(\", \",TRUE,IF(A263='Projectwize (Do not edit)'!$B$2:$B$7,'Projectwize (Do not edit)'!$C$2:$C$7,\"\"))","v":""}]
[null,{"$f":"_xlfn.TEXTJOIN(\", \",TRUE,IF(A264='Projectwize (Do not edit)'!$B$2:$B$7,'Projectwize (Do not edit)'!$C$2:$C$7,\"\"))","v":""}]
[null,{"$f":"_xlfn.TEXTJOIN(\", \",TRUE,IF(A265='Projectwize (Do not edit)'!$B$2:$B$7,'Projectwize (Do not edit)'!$C$2:$C$7,\"\"))","v":""}]
[null,{"$f":"_xlfn.TEXTJOIN(\", \",TRUE,IF(A266='Projectwize (Do not edit)'!$B$2:$B$7,'Projectwize (Do not edit)'!$C$2:$C$7,\"\"))","v":""}]
[null,{"$f":"_xlfn.TEXTJOIN(\", \",TRUE,IF(A267='Projectwize (Do not edit)'!$B$2:$B$7,'Projectwize (Do not edit)'!$C$2:$C$7,\"\"))","v":""}]
[null,{"$f":"_xlfn.TEXTJOIN(\", \",TRUE,IF(A268='Projectwize (Do not edit)'!$B$2:$B$7,'Projectwize (Do not edit)'!$C$2:$C$7,\"\"))","v":""}]
[null,{"$f":"_xlfn.TEXTJOIN(\", \",TRUE,IF(A269='Projectwize (Do not edit)'!$B$2:$B$7,'Projectwize (Do not edit)'!$C$2:$C$7,\"\"))","v":""}]
[null,{"$f":"_xlfn.TEXTJOIN(\", \",TRUE,IF(A270='Projectwize (Do not edit)'!$B$2:$B$7,'Projectwize (Do not edit)'!$C$2:$C$7,\"\"))","v":""}]
[null,{"$f":"_xlfn.TEXTJOIN(\", \",TRUE,IF(A271='Projectwize (Do not edit)'!$B$2:$B$7,'Projectwize (Do not edit)'!$C$2:$C$7,\"\"))","v":""}]
[null,{"$f":"_xlfn.TEXTJOIN(\", \",TRUE,IF(A272='Projectwize (Do not edit)'!$B$2:$B$7,'Projectwize (Do not edit)'!$C$2:$C$7,\"\"))","v":""}]
[null,{"$f":"_xlfn.TEXTJOIN(\", \",TRUE,IF(A273='Projectwize (Do not edit)'!$B$2:$B$7,'Projectwize (Do not edit)'!$C$2:$C$7,\"\"))","v":""}]
[null,{"$f":"_xlfn.TEXTJOIN(\", \",TRUE,IF(A274='Projectwize (Do not edit)'!$B$2:$B$7,'Projectwize (Do not edit)'!$C$2:$C$7,\"\"))","v":""}]
[null,{"$f":"_xlfn.TEXTJOIN(\", \",TRUE,IF(A275='Projectwize (Do not edit)'!$B$2:$B$7,'Projectwize (Do not edit)'!$C$2:$C$7,\"\"))","v":""}]
[null,{"$f":"_xlfn.TEXTJOIN(\", \",TRUE,IF(A276='Projectwize (Do not edit)'!$B$2:$B$7,'Projectwize (Do not edit)'!$C$2:$C$7,\"\"))","v":""}]
[null,{"$f":"_xlfn.TEXTJOIN(\", \",TRUE,IF(A277='Projectwize (Do not edit)'!$B$2:$B$7,'Projectwize (Do not edit)'!$C$2:$C$7,\"\"))","v":""}]
[null,{"$f":"_xlfn.TEXTJOIN(\", \",TRUE,IF(A278='Projectwize (Do not edit)'!$B$2:$B$7,'Projectwize (Do not edit)'!$C$2:$C$7,\"\"))","v":""}]
[null,{"$f":"_xlfn.TEXTJOIN(\", \",TRUE,IF(A279='Projectwize (Do not edit)'!$B$2:$B$7,'Projectwize (Do not edit)'!$C$2:$C$7,\"\"))","v":""}]
[null,{"$f":"_xlfn.TEXTJOIN(\", \",TRUE,IF(A280='Projectwize (Do not edit)'!$B$2:$B$7,'Projectwize (Do not edit)'!$C$2:$C$7,\"\"))","v":""}]
[null,{"$f":"_xlfn.TEXTJOIN(\", \",TRUE,IF(A281='Projectwize (Do not edit)'!$B$2:$B$7,'Projectwize (Do not edit)'!$C$2:$C$7,\"\"))","v":""}]
[null,{"$f":"_xlfn.TEXTJOIN(\", \",TRUE,IF(A282='Projectwize (Do not edit)'!$B$2:$B$7,'Projectwize (Do not edit)'!$C$2:$C$7,\"\"))","v":""}]
[null,{"$f":"_xlfn.TEXTJOIN(\", \",TRUE,IF(A283='Projectwize (Do not edit)'!$B$2:$B$7,'Projectwize (Do not edit)'!$C$2:$C$7,\"\"))","v":""}]
[null,{"$f":"_xlfn.TEXTJOIN(\", \",TRUE,IF(A284='Projectwize (Do not edit)'!$B$2:$B$7,'Projectwize (Do not edit)'!$C$2:$C$7,\"\"))","v":""}]
[null,{"$f":"_xlfn.TEXTJOIN(\", \",TRUE,IF(A285='Projectwize (Do not edit)'!$B$2:$B$7,'Projectwize (Do not edit)'!$C$2:$C$7,\"\"))","v":""}]
[null,{"$f":"_xlfn.TEXTJOIN(\", \",TRUE,IF(A286='Projectwize (Do not edit)'!$B$2:$B$7,'Projectwize (Do not edit)'!$C$2:$C$7,\"\"))","v":""}]
[null,{"$f":"_xlfn.TEXTJOIN(\", \",TRUE,IF(A287='Projectwize (Do not edit)'!$B$2:$B$7,'Projectwize (Do not edit)'!$C$2:$C$7,\"\"))","v":""}]
[null,{"$f":"_xlfn.TEXTJOIN(\", \",TRUE,IF(A288='Projectwize (Do not edit)'!$B$2:$B$7,'Projectwize (Do not edit)'!$C$2:$C$7,\"\"))","v":""}]
[null,{"$f":"_xlfn.TEXTJOIN(\", \",TRUE,IF(A289='Projectwize (Do not edit)'!$B$2:$B$7,'Projectwize (Do not edit)'!$C$2:$C$7,\"\"))","v":""}]
[null,{"$f":"_xlfn.TEXTJOIN(\", \",TRUE,IF(A290='Projectwize (Do not edit)'!$B$2:$B$7,'Projectwize (Do not edit)'!$C$2:$C$7,\"\"))","v":""}]
[null,{"$f":"_xlfn.TEXTJOIN(\", \",TRUE,IF(A291='Projectwize (Do not edit)'!$B$2:$B$7,'Projectwize (Do not edit)'!$C$2:$C$7,\"\"))","v":""}]
[null,{"$f":"_xlfn.TEXTJOIN(\", \",TRUE,IF(A292='Projectwize (Do not edit)'!$B$2:$B$7,'Projectwize (Do not edit)'!$C$2:$C$7,\"\"))","v":""}]
[null,{"$f":"_xlfn.TEXTJOIN(\", \",TRUE,IF(A293='Projectwize (Do not edit)'!$B$2:$B$7,'Projectwize (Do not edit)'!$C$2:$C$7,\"\"))","v":""}]
[null,{"$f":"_xlfn.TEXTJOIN(\", \",TRUE,IF(A294='Projectwize (Do not edit)'!$B$2:$B$7,'Projectwize (Do not edit)'!$C$2:$C$7,\"\"))","v":""}]
[null,{"$f":"_xlfn.TEXTJOIN(\", \",TRUE,IF(A295='Projectwize (Do not edit)'!$B$2:$B$7,'Projectwize (Do not edit)'!$C$2:$C$7,\"\"))","v":""}]
[null,{"$f":"_xlfn.TEXTJOIN(\", \",TRUE,IF(A296='Projectwize (Do not edit)'!$B$2:$B$7,'Projectwize (Do not edit)'!$C$2:$C$7,\"\"))","v":""}]
[null,{"$f":"_xlfn.TEXTJOIN(\", \",TRUE,IF(A297='Projectwize (Do not edit)'!$B$2:$B$7,'Projectwize (Do not edit)'!$C$2:$C$7,\"\"))","v":""}]
[null,{"$f":"_xlfn.TEXTJOIN(\", \",TRUE,IF(A298='Projectwize (Do not edit)'!$B$2:$B$7,'Projectwize (Do not edit)'!$C$2:$C$7,\"\"))","v":""}]
[null,{"$f":"_xlfn.TEXTJOIN(\", \",TRUE,IF(A299='Projectwize (Do not edit)'!$B$2:$B$7,'Projectwize (Do not edit)'!$C$2:$C$7,\"\"))","v":""}]
[null,{"$f":"_xlfn.TEXTJOIN(\", \",TRUE,IF(A300='Projectwize (Do not edit)'!$B$2:$B$7,'Projectwize (Do not edit)'!$C$2:$C$7,\"\"))","v":""}]
[null,{"$f":"_xlfn.TEXTJOIN(\", \",TRUE,IF(A301='Projectwize (Do not edit)'!$B$2:$B$7,'Projectwize (Do not edit)'!$C$2:$C$7,\"\"))","v":""}]

{"sheet":"Rename ISO A1 FOLDER","index":1,"n_rows":16,"n_cols":8,"rows_kept":16,"cut":false,"hidden":false,"merged":[]}
["NAME EXSTRACT","Name","Extension","Folder Path","NUMRE"]
[{"$f":"IF(Output_Files[[#This Row],[Name]]>\" \",LEFT(Output_Files[[#This Row],[Name]],FIND(\"-s\",Output_Files[[#This Row],[Name]])-1),\"\")","v":"CW-E10-P55215"},"CW-E10-P55215-sht-1.dwg",".dwg","C:\\CAD\\isometrics\\FinalA1\\dgn\\Output_Files\\",{"$f":"CONCATENATE(VLOOKUP(Output_Files[[#This Row],[NAME EXSTRACT]],'Projectwize (Do not edit)'!$A$1:$C$7,2,FALSE),\".dwg\")","v":{"$error":"#N/A"}}]
[{"$f":"IF(Output_Files[[#This Row],[Name]]>\" \",LEFT(Output_Files[[#This Row],[Name]],FIND(\"-s\",Output_Files[[#This Row],[Name]])-1),\"\")","v":"CW-E10-P55216"},"CW-E10-P55216-sht-1.dwg",".dwg","C:\\CAD\\isometrics\\FinalA1\\dgn\\Output_Files\\",{"$f":"CONCATENATE(VLOOKUP(Output_Files[[#This Row],[NAME EXSTRACT]],'Projectwize (Do not edit)'!$A$1:$C$7,2,FALSE),\".dwg\")","v":{"$error":"#N/A"}}]
[{"$f":"IF(Output_Files[[#This Row],[Name]]>\" \",LEFT(Output_Files[[#This Row],[Name]],FIND(\"-s\",Output_Files[[#This Row],[Name]])-1),\"\")","v":"CW-E10-P55217"},"CW-E10-P55217-sht-1.dwg",".dwg","C:\\CAD\\isometrics\\FinalA1\\dgn\\Output_Files\\",{"$f":"CONCATENATE(VLOOKUP(Output_Files[[#This Row],[NAME EXSTRACT]],'Projectwize (Do not edit)'!$A$1:$C$7,2,FALSE),\".dwg\")","v":{"$error":"#N/A"}}]
[{"$f":"IF(Output_Files[[#This Row],[Name]]>\" \",LEFT(Output_Files[[#This Row],[Name]],FIND(\"-s\",Output_Files[[#This Row],[Name]])-1),\"\")","v":"RG-A16-P45143"},"RG-A16-P45143-sht-1.dwg",".dwg","C:\\CAD\\isometrics\\FinalA1\\dgn\\Output_Files\\",{"$f":"CONCATENATE(VLOOKUP(Output_Files[[#This Row],[NAME EXSTRACT]],'Projectwize (Do not edit)'!$A$1:$C$7,2,FALSE),\".dwg\")","v":{"$error":"#N/A"}}]
[{"$f":"IF(Output_Files[[#This Row],[Name]]>\" \",LEFT(Output_Files[[#This Row],[Name]],FIND(\"-s\",Output_Files[[#This Row],[Name]])-1),\"\")","v":"RG-A30-P45142"},"RG-A30-P45142-sht-1.dwg",".dwg","C:\\CAD\\isometrics\\FinalA1\\dgn\\Output_Files\\",{"$f":"CONCATENATE(VLOOKUP(Output_Files[[#This Row],[NAME EXSTRACT]],'Projectwize (Do not edit)'!$A$1:$C$7,2,FALSE),\".dwg\")","v":{"$error":"#N/A"}}]
[{"$f":"IF(Output_Files[[#This Row],[Name]]>\" \",LEFT(Output_Files[[#This Row],[Name]],FIND(\"-s\",Output_Files[[#This Row],[Name]])-1),\"\")","v":"RG-B25-P45103"},"RG-B25-P45103-sht-1.dwg",".dwg","C:\\CAD\\isometrics\\FinalA1\\dgn\\Output_Files\\",{"$f":"CONCATENATE(VLOOKUP(Output_Files[[#This Row],[NAME EXSTRACT]],'Projectwize (Do not edit)'!$A$1:$C$7,2,FALSE),\".dwg\")","v":{"$error":"#N/A"}}]
[{"$f":"IF(Output_Files[[#This Row],[Name]]>\" \",LEFT(Output_Files[[#This Row],[Name]],FIND(\"-s\",Output_Files[[#This Row],[Name]])-1),\"\")","v":"RG-B25-P45106"},"RG-B25-P45106-sht-1.dwg",".dwg","C:\\CAD\\isometrics\\FinalA1\\dgn\\Output_Files\\",{"$f":"CONCATENATE(VLOOKUP(Output_Files[[#This Row],[NAME EXSTRACT]],'Projectwize (Do not edit)'!$A$1:$C$7,2,FALSE),\".dwg\")","v":{"$error":"#N/A"}}]
[{"$f":"IF(Output_Files[[#This Row],[Name]]>\" \",LEFT(Output_Files[[#This Row],[Name]],FIND(\"-s\",Output_Files[[#This Row],[Name]])-1),\"\")","v":"RG-B25-P45107"},"RG-B25-P45107-sht-1.dwg",".dwg","C:\\CAD\\isometrics\\FinalA1\\dgn\\Output_Files\\",{"$f":"CONCATENATE(VLOOKUP(Output_Files[[#This Row],[NAME EXSTRACT]],'Projectwize (Do not edit)'!$A$1:$C$7,2,FALSE),\".dwg\")","v":"RG-B25-P45107.dwg"}]
[{"$f":"IF(Output_Files[[#This Row],[Name]]>\" \",LEFT(Output_Files[[#This Row],[Name]],FIND(\"-s\",Output_Files[[#This Row],[Name]])-1),\"\")","v":"RL-A30-P45114"},"RL-A30-P45114-sht-1.dwg",".dwg","C:\\CAD\\isometrics\\FinalA1\\dgn\\Output_Files\\",{"$f":"CONCATENATE(VLOOKUP(Output_Files[[#This Row],[NAME EXSTRACT]],'Projectwize (Do not edit)'!$A$1:$C$7,2,FALSE),\".dwg\")","v":"RL-A30-P45114.dwg"}]
[{"$f":"IF(Output_Files[[#This Row],[Name]]>\" \",LEFT(Output_Files[[#This Row],[Name]],FIND(\"-s\",Output_Files[[#This Row],[Name]])-1),\"\")","v":"RL-B25-P45101"},"RL-B25-P45101-sht-1.dwg",".dwg","C:\\CAD\\isometrics\\FinalA1\\dgn\\Output_Files\\",{"$f":"CONCATENATE(VLOOKUP(Output_Files[[#This Row],[NAME EXSTRACT]],'Projectwize (Do not edit)'!$A$1:$C$7,2,FALSE),\".dwg\")","v":{"$error":"#N/A"}}]
[{"$f":"IF(Output_Files[[#This Row],[Name]]>\" \",LEFT(Output_Files[[#This Row],[Name]],FIND(\"-s\",Output_Files[[#This Row],[Name]])-1),\"\")","v":"RL-B25-P45105"},"RL-B25-P45105-sht-1.dwg",".dwg","C:\\CAD\\isometrics\\FinalA1\\dgn\\Output_Files\\",{"$f":"CONCATENATE(VLOOKUP(Output_Files[[#This Row],[NAME EXSTRACT]],'Projectwize (Do not edit)'!$A$1:$C$7,2,FALSE),\".dwg\")","v":{"$error":"#N/A"}}]
[{"$f":"IF(Output_Files[[#This Row],[Name]]>\" \",LEFT(Output_Files[[#This Row],[Name]],FIND(\"-s\",Output_Files[[#This Row],[Name]])-1),\"\")","v":"RL-B25-P45109"},"RL-B25-P45109-sht-1.dwg",".dwg","C:\\CAD\\isometrics\\FinalA1\\dgn\\Output_Files\\",{"$f":"CONCATENATE(VLOOKUP(Output_Files[[#This Row],[NAME EXSTRACT]],'Projectwize (Do not edit)'!$A$1:$C$7,2,FALSE),\".dwg\")","v":{"$error":"#N/A"}},null,null,"Virker ikke på isoer i 2 sheets. "]
[{"$f":"IF(Output_Files[[#This Row],[Name]]>\" \",LEFT(Output_Files[[#This Row],[Name]],FIND(\"-s\",Output_Files[[#This Row],[Name]])-1),\"\")","v":"RL-B25-P45110"},"RL-B25-P45110-sht-1.dwg",".dwg","C:\\CAD\\isometrics\\FinalA1\\dgn\\Output_Files\\",{"$f":"CONCATENATE(VLOOKUP(Output_Files[[#This Row],[NAME EXSTRACT]],'Projectwize (Do not edit)'!$A$1:$C$7,2,FALSE),\".dwg\")","v":{"$error":"#N/A"}}]
[{"$f":"IF(Output_Files[[#This Row],[Name]]>\" \",LEFT(Output_Files[[#This Row],[Name]],FIND(\"-s\",Output_Files[[#This Row],[Name]])-1),\"\")","v":"RL-B25-P45136"},"RL-B25-P45136-sht-1.dwg",".dwg","C:\\CAD\\isometrics\\FinalA1\\dgn\\Output_Files\\",{"$f":"CONCATENATE(VLOOKUP(Output_Files[[#This Row],[NAME EXSTRACT]],'Projectwize (Do not edit)'!$A$1:$C$7,2,FALSE),\".dwg\")","v":{"$error":"#N/A"}}]
[{"$f":"IF(Output_Files[[#This Row],[Name]]>\" \",LEFT(Output_Files[[#This Row],[Name]],FIND(\"-s\",Output_Files[[#This Row],[Name]])-1),\"\")","v":"RL-B25-P45140"},"RL-B25-P45140-sht-1.dwg",".dwg","C:\\CAD\\isometrics\\FinalA1\\dgn\\Output_Files\\",{"$f":"CONCATENATE(VLOOKUP(Output_Files[[#This Row],[NAME EXSTRACT]],'Projectwize (Do not edit)'!$A$1:$C$7,2,FALSE),\".dwg\")","v":{"$error":"#N/A"}}]

{"sheet":"PROJECTWICE (PASTE DATA)","index":2,"n_rows":7,"n_cols":35,"rows_kept":7,"cut":false,"hidden":false,"merged":[]}
["Folder Id","Updated","Name","Rev No","State","Project","Unit code","Paper Size","Out to","Description 1","Description 2","Description 3","Description 4","Note Incl. Rev","Engineering Status","Revision User Full Name Creator","Project2","Engineering Status3","PP Directory","Document Type","Plant Type","Plant Size","Unit","Tag","Replaced by","Replaced for","Paper Size4","Scale","Released by","RELEASED__USERNAME","Released Date","Approved by","User Full Name Approver","Approved Date","Union Document Environment"]
[13830,"2021-05-12T13:20:14",1019879,"A","Approved",230087,"U331","A1",null,"Internal Isometric","Line No.: RG-B25-P45107","Catox Unit","Nippon Gases Espana",null,"Released for Construction (RFC)"]
[13830,"2021-05-12T13:20:19",1019880,"A","Approved",230087,"U331","A1",null,"Internal Isometric","Line No.: RL-A30-P45114","Catox Unit","Nippon Gases Espana",null,"Released for Construction (RFC)"]
[13830,"2021-05-12T13:18:39",1580715,"A","Approved",230087,"U361","A1",null,"Internal Isometric","Line No.: RL-B25-P45109 2/2","Dehydrator Unit","Nippon Gases Espana",null,"Released for Construction (RFC)"]
[13830,"2021-05-12T13:18:45",1580717,"A","Approved",230087,"U361","A1",null,"Internal Isometric","Line No.: RL-B25-P45109 2/2","Dehydrator Unit","Nippon Gases Espana",null,"Released for Construction (RFC)"]
[13830,"2021-05-12T13:18:51",1580718,"A","Approved",230087,"U361","A1",null,"Internal Isometric","Line No.: RL-B25-P45109 2/2","Dehydrator Unit","Nippon Gases Espana",null,"Released for Construction (RFC)"]
[13830,"2021-05-12T13:18:57",1580719,"A","Approved",230087,"U361","A1",null,"Internal Isometric","Line No.: RL-B25-P45109 2/2","Dehydrator Unit","Nippon Gases Espana",null,"Released for Construction (RFC)"]

{"sheet":"Projectwize (Do not edit)","index":3,"n_rows":7,"n_cols":3,"rows_kept":7,"cut":false,"hidden":false,"merged":[]}
["Description 2","Description 2 - with out extension","Name (Drawing Number)"]
[{"$f":"IF(ISERROR(RIGHT('PROJECTWICE (PASTE DATA)'!$K2,LEN('PROJECTWICE (PASTE DATA)'!$K2)-FIND(\":\",'PROJECTWICE (PASTE DATA)'!$K2)-1))=FALSE,RIGHT('PROJECTWICE (PASTE DATA)'!$K2,LEN('PROJECTWICE (PASTE DATA)'!$K2)-FIND(\":\",'PROJECTWICE (PASTE DATA)'!$K2)-1),\"\")","v":"RG-B25-P45107"},{"$f":"IF(ISERROR(LEFT(A2,(FIND(\" \",A2))))=TRUE,A2,LEFT(A2,(FIND(\" \",A2))-1))","v":"RG-B25-P45107"},{"$f":"IF(HLOOKUP(\"Name\",'PROJECTWICE (PASTE DATA)'!A$1:E7,ROW(C2),FALSE)=0,\"\",HLOOKUP(\"Name\",'PROJECTWICE (PASTE DATA)'!A$1:E7,ROW(C2),FALSE))","v":1019879}]
[{"$f":"IF(ISERROR(RIGHT('PROJECTWICE (PASTE DATA)'!$K3,LEN('PROJECTWICE (PASTE DATA)'!$K3)-FIND(\":\",'PROJECTWICE (PASTE DATA)'!$K3)-1))=FALSE,RIGHT('PROJECTWICE (PASTE DATA)'!$K3,LEN('PROJECTWICE (PASTE DATA)'!$K3)-FIND(\":\",'PROJECTWICE (PASTE DATA)'!$K3)-1),\"\")","v":"RL-A30-P45114"},"RL-A30-P45114",{"$f":"IF(HLOOKUP(\"Name\",'PROJECTWICE (PASTE DATA)'!A$1:E8,ROW(C3),FALSE)=0,\"\",HLOOKUP(\"Name\",'PROJECTWICE (PASTE DATA)'!A$1:E8,ROW(C3),FALSE))","v":1019880}]
[{"$f":"IF(ISERROR(RIGHT('PROJECTWICE (PASTE DATA)'!$K4,LEN('PROJECTWICE (PASTE DATA)'!$K4)-FIND(\":\",'PROJECTWICE (PASTE DATA)'!$K4)-1))=FALSE,RIGHT('PROJECTWICE (PASTE DATA)'!$K4,LEN('PROJECTWICE (PASTE DATA)'!$K4)-FIND(\":\",'PROJECTWICE (PASTE DATA)'!$K4)-1),\"\")","v":"RL-B25-P45109 2/2"},"RL-B25-P45109",{"$f":"IF(HLOOKUP(\"Name\",'PROJECTWICE (PASTE DATA)'!A$1:E9,ROW(C4),FALSE)=0,\"\",HLOOKUP(\"Name\",'PROJECTWICE (PASTE DATA)'!A$1:E9,ROW(C4),FALSE))","v":1580715}]
[{"$f":"IF(ISERROR(RIGHT('PROJECTWICE (PASTE DATA)'!$K5,LEN('PROJECTWICE (PASTE DATA)'!$K5)-FIND(\":\",'PROJECTWICE (PASTE DATA)'!$K5)-1))=FALSE,RIGHT('PROJECTWICE (PASTE DATA)'!$K5,LEN('PROJECTWICE (PASTE DATA)'!$K5)-FIND(\":\",'PROJECTWICE (PASTE DATA)'!$K5)-1),\"\")","v":"RL-B25-P45109 2/2"},"RL-B25-P45109",{"$f":"IF(HLOOKUP(\"Name\",'PROJECTWICE (PASTE DATA)'!A$1:E10,ROW(C5),FALSE)=0,\"\",HLOOKUP(\"Name\",'PROJECTWICE (PASTE DATA)'!A$1:E10,ROW(C5),FALSE))","v":1580717}]
[{"$f":"IF(ISERROR(RIGHT('PROJECTWICE (PASTE DATA)'!$K6,LEN('PROJECTWICE (PASTE DATA)'!$K6)-FIND(\":\",'PROJECTWICE (PASTE DATA)'!$K6)-1))=FALSE,RIGHT('PROJECTWICE (PASTE DATA)'!$K6,LEN('PROJECTWICE (PASTE DATA)'!$K6)-FIND(\":\",'PROJECTWICE (PASTE DATA)'!$K6)-1),\"\")","v":"RL-B25-P45109 2/2"},"RL-B25-P45109",{"$f":"IF(HLOOKUP(\"Name\",'PROJECTWICE (PASTE DATA)'!A$1:E11,ROW(C6),FALSE)=0,\"\",HLOOKUP(\"Name\",'PROJECTWICE (PASTE DATA)'!A$1:E11,ROW(C6),FALSE))","v":1580718}]
[{"$f":"IF(ISERROR(RIGHT(_xlfn.SINGLE('PROJECTWICE (PASTE DATA)'!$K7),LEN(_xlfn.SINGLE('PROJECTWICE (PASTE DATA)'!$K7))-FIND(\":\",_xlfn.SINGLE('PROJECTWICE (PASTE DATA)'!$K7))-1))=FALSE,RIGHT(_xlfn.SINGLE('PROJECTWICE (PASTE DATA)'!$K7),LEN(_xlfn.SINGLE('PROJECTWICE (PASTE DATA)'!$K7))-FIND(\":\",_xlfn.SINGLE('PROJECTWICE (PASTE DATA)'!$K7))-1),\"\")","v":"RL-B25-P45109 2/2"},"RL-B25-P45109",{"$f":"IF(HLOOKUP(\"Name\",'PROJECTWICE (PASTE DATA)'!A$1:E12,ROW(C7),FALSE)=0,\"\",HLOOKUP(\"Name\",'PROJECTWICE (PASTE DATA)'!A$1:E12,ROW(C7),FALSE))","v":1580719}]